bitfinex/quotes_SOLUSD_20240925
["timestamp","ask_amount","ask_price","bid_price","bid_amount"]
[1727265848771,30.398584,151.02,150.99,11.19126814]
[1727265849473,6.6221,151.01,150.99,0.3498345]
[1727265849671,23.776884,151.0,150.99,0.3498345]
[1727265851091,6.6219,151.02,150.99,0.3498345]
[1727265851392,23.776884,151.0,150.99,0.3498345]
[1727265852894,6.6213,151.03,150.99,6.9727345]
[1727265853078,20.0,151.04,151.0,10.84143364]
[1727265853279,6.90931092,151.06,150.99,0.3498345]
[1727265853280,20.0,151.05,150.99,0.3498345]
[1727265853491,6.6219,151.02,150.99,0.3498345]
[1727265854276,23.776884,151.01,150.99,0.3498345]
[1727265855689,6.6213,151.03,150.99,6.9725345]
[1727265856808,20.0,151.05,150.99,6.9725345]
[1727265856809,6.90931092,151.06,151.0,10.84143364]
[1727265857099,6.6201,151.06,151.02,6.6216]
[1727265857599,16.5469,151.09,150.99,0.3498345]
[1727265857600,20.0,151.08,150.99,0.3498345]
[1727265857807,6.6213,151.03,150.99,0.3498345]
[1727265858015,20.0,151.06,150.99,0.3498345]
[1727265858207,23.776884,151.01,150.99,0.3498345]
[1727265859192,6.6212,151.03,150.99,17.81406814]
[1727265859391,23.776884,151.02,150.99,17.81406814]
[1727265859905,23.776884,151.03,150.99,17.81406814]
[1727265861414,30.398084,151.03,150.99,17.81406814]
[1727265861782,30.398084,151.03,150.99,6.9726345]
[1727265864613,30.398084,151.03,150.99,0.3498345]
[1727265864907,23.776884,151.01,150.99,0.3498345]
[1727265867093,30.398984,151.01,150.99,0.3498345]
[1727265868814,23.776884,151.01,150.99,0.3498345]
[1727265869492,6.6217,151.02,150.99,0.3498345]
[1727265869493,6.6212,151.03,150.99,6.9726345]
[1727265869691,23.776884,151.02,150.99,6.9726345]
[1727265872310,23.776884,151.02,150.99,0.3498345]
[1727265872512,6.6221,151.01,150.99,0.3498345]
[1727265872715,23.776884,151.0,150.99,0.3498345]
[1727265873809,30.399384,151.0,150.99,0.3498345]
[1727265878624,23.776884,151.0,150.99,0.3498345]
[1727265882904,30.399384,151.0,150.99,0.3498345]
[1727265891831,23.776884,151.0,150.99,0.3498345]
[1727265894740,30.399384,151.0,150.99,0.3498345]
[1727265901717,6.6217,151.02,150.99,0.3498345]
[1727265901945,23.776884,151.02,150.99,17.81386814]
[1727265902130,6.6214,151.03,150.99,24.47236814]
[1727265903341,16.5506,151.06,150.99,24.47236814]
[1727265903342,6.6208,151.04,151.0,6.6221]
[1727265903746,6.92811425,151.08,150.99,34.40686814]
[1727265903949,6.6204,151.05,151.01,6.6219]
[1727265904236,6.6204,151.05,151.01,17.46333364]
[1727265904441,23.776884,151.04,151.01,17.46333364]
[1727265904753,23.776884,151.04,151.01,10.84143364]
[1727265905637,23.776884,151.04,151.01,17.46323364]
[1727265907352,23.776884,151.04,151.01,10.84143364]
[1727265908459,23.776884,151.04,151.01,17.46323364]
[1727265908661,6.92811425,151.08,151.03,10.84143364]
[1727265909161,6.6198,151.07,151.03,10.84143364]
[1727265909947,6.92811425,151.08,151.01,27.39603364]
[1727265910150,6.92811425,151.08,151.01,16.5546]
[1727265910360,23.776884,151.04,151.01,23.1766]
[1727265910740,23.776884,151.04,151.01,34.01803364]
[1727265911052,23.776884,151.07,151.02,6.6216]
[1727265911258,30.396384,151.07,151.03,10.84143364]
[1727265913235,30.396384,151.07,151.03,17.46253364]
[1727265913951,30.396384,151.07,151.03,10.84143364]
[1727265914336,23.776884,151.07,151.03,10.84143364]
[1727265914537,23.776884,151.07,151.01,23.1766]
[1727265914737,6.6204,151.05,151.01,23.1766]
[1727265917153,6.6204,151.05,151.01,24.50083556]
[1727265918236,6.6204,151.05,151.01,23.1766]
[1727265923949,6.6204,151.05,151.01,24.50085422]
[1727265925061,6.6204,151.05,151.02,10.84143364]
[1727265925268,23.776884,151.05,151.02,17.46293364]
[1727265926354,23.776884,151.06,150.99,7.0083345]
[1727265926548,6.6217,151.02,150.99,7.0083345]
[1727265926847,6.6213,151.03,150.99,13.6312345]
[1727265927252,6.6216,151.02,150.99,13.6312345]
[1727265927763,6.6213,151.03,150.99,13.6312345]
[1727265935366,6.6213,151.03,150.99,24.47266814]
[1727265937650,23.776884,151.02,150.99,7.0083345]
[1727265937977,23.776884,151.04,150.99,0.3498345]
[1727265939377,6.6225,151.0,150.99,0.3498345]
[1727265939584,30.399384,151.0,150.99,0.3498345]
[1727265952575,50.399384,151.0,150.99,0.3498345]
[1727265966086,6.6221,151.01,150.99,0.3498345]
[1727265966412,6.6212,151.03,150.99,17.81416814]
[1727265966584,6.6209,151.04,150.99,17.81416814]
[1727265966784,6.6204,151.05,151.0,10.84143364]
[1727265967016,6.6204,151.05,151.01,6.1697]
[1727265967195,6.6204,151.05,151.01,12.7917]
[1727265967397,6.6204,151.05,151.01,6.1697]
[1727265969227,23.776884,151.04,151.01,6.1697]
[1727265973213,30.397584,151.04,151.01,6.1697]
[1727265975917,23.776884,151.04,151.02,6.6216]
[1727265976219,23.776884,151.04,151.01,12.7916]
[1727265976403,23.776884,151.04,151.01,6.1697]
[1727265977208,23.776884,151.04,151.01,17.01113364]
[1727265978624,6.92356275,151.09,151.03,10.84143364]
[1727265978913,6.6194,151.07,151.04,10.84143364]
[1727265979302,6.6191,151.08,151.05,10.84143364]
[1727265979504,6.6191,151.08,151.06,10.84143364]
[1727265980119,23.776884,151.07,151.06,10.84143364]
[1727265980329,23.776884,151.07,151.05,10.84143364]
[1727265983806,6.6184,151.1,151.05,17.46153364]
[1727265984117,6.6185,151.09,151.05,17.46153364]
[1727265985423,16.5439,151.12,151.03,16.5527]
[1727265985424,30.396084,151.08,151.04,17.46203364]
[1727265986004,6.6194,151.07,151.04,10.84143364]
[1727265989299,23.776884,151.06,151.01,6.1697]
[1727265989502,6.6203,151.05,151.01,23.63303364]
[1727265990206,23.776884,151.05,151.02,6.6216]
[1727265990410,6.62,151.06,151.03,17.46253364]
[1727265990411,23.776884,151.06,151.03,17.46253364]
[1727265991930,30.396784,151.06,151.03,10.84143364]
[1727265993015,30.396784,151.06,151.02,23.1753]
[1727265993604,23.776884,151.06,151.02,16.5539]
[1727265993924,6.6213,151.03,150.99,46.0001345]
[1727265994121,6.6217,151.02,150.99,22.8209345]
[1727265994652,16.5501,151.06,150.99,22.8209345]
[1727265994653,6.6213,151.03,150.99,29.4435345]
[1727265994846,6.6213,151.03,150.99,30.76794112]
[1727265995028,6.6213,151.03,150.99,29.4435345]
[1727265995824,23.776884,151.03,151.0,12.16583969]
[1727265996025,6.6208,151.04,151.0,17.46383364]
[1727265996435,23.776884,151.03,151.0,17.46383364]
[1727265997235,23.776884,151.03,151.0,10.84143364]
[1727265997831,23.776884,151.03,150.99,29.4437345]
[1727265998031,30.398184,151.03,150.99,33.66236814]
[1727265998246,23.776884,151.01,150.99,33.66236814]
[1727265998429,30.398184,151.03,150.99,33.66236814]
[1727265999138,30.398184,151.03,150.99,40.28516814]
[1727266002859,30.398184,151.03,150.99,40.28516814]
[1727266006274,30.398184,151.03,150.99,29.4437345]
[1727266006436,30.398184,151.03,150.99,40.28516814]
[1727266008834,23.776884,151.03,150.99,33.66236814]
[1727266009039,23.776884,151.03,151.0,1.32438256]
[1727266009240,23.776884,151.04,151.01,17.46333364]
[1727266009460,6.92732056,151.07,151.03,10.84143364]
[1727266009665,6.6199,151.06,151.03,10.84143364]
[1727266012063,6.6199,151.06,151.02,6.6215]
[1727266012260,30.397284,151.05,151.01,17.46343364]
[1727266013257,30.397284,151.05,151.01,18.7876952]
[1727266013767,30.397284,151.05,151.02,6.6216]
[1727266014344,23.776884,151.05,151.02,6.6216]
[1727266017770,6.62,151.06,151.02,6.6216]
[1727266020478,6.62,151.06,151.02,17.46303364]
[1727266021553,6.6191,151.08,151.04,17.46213364]
[1727266021751,23.776884,151.07,151.04,17.46213364]
[1727266021947,6.92719666,151.11,151.05,6.6201]
[1727266022152,6.6182,151.1,151.06,18.78496681]
[1727266022364,6.6182,151.1,151.06,17.46113364]
[1727266024768,6.92719666,151.11,151.09,10.84143364]
[1727266024964,6.92719666,151.11,151.1,10.84143364]
[1727266025173,6.8594305,151.14,151.1,10.84143364]
[1727266025563,6.6172,151.12,151.08,12.9227]
[1727266025765,6.6185,151.09,151.04,32.9143]
[1727266025968,6.6185,151.09,151.05,17.46153364]
[1727266026280,6.619,151.08,151.04,38.9788]
[1727266026882,6.6199,151.06,151.04,6.0645]
[1727266027885,6.6194,151.07,151.04,6.0645]
[1727266028258,6.6194,151.07,151.04,16.90593364]
[1727266030074,6.6194,151.07,151.04,6.0645]
[1727266030277,6.6199,151.06,151.04,6.0645]
[1727266031568,6.6199,151.06,151.02,17.46293364]
[1727266032084,16.5456,151.1,151.02,10.84143364]
[1727266032294,16.5456,151.1,151.01,23.1765]
[1727266032295,6.6204,151.05,151.01,23.1765]
[1727266032962,6.6209,151.04,151.0,29.0122]
[1727266033181,6.6212,151.03,151.0,22.3899]
[1727266034975,6.6212,151.03,151.0,23.71419795]
[1727266036386,6.6212,151.03,151.0,22.3899]
[1727266036993,6.6212,151.03,151.0,6.0284]
[1727266041306,6.6209,151.04,151.0,12.6508]
[1727266046787,43.776884,151.07,151.01,6.6217]
[1727266046989,6.92827939,151.08,151.02,10.84143364]
[1727266047203,6.6198,151.07,151.03,6.6209]
[1727266048200,13.54727939,151.08,151.04,6.6207]
[1727266048402,6.92827939,151.08,151.05,17.46163364]
[1727266048607,6.92827939,151.08,151.05,23.65063364]
[1727266049501,6.92827939,151.08,151.05,17.03043364]
[1727266049710,6.92827939,151.08,151.05,6.189]
[1727266049915,30.396284,151.07,151.05,6.189]
[1727266050918,13.54737939,151.08,151.05,6.189]
[1727266051106,6.92827939,151.08,151.05,6.189]
[1727266051292,13.54727939,151.08,151.05,6.189]
[1727266052816,30.396584,151.07,151.05,6.189]
[1727266065726,23.776884,151.07,151.03,27.39363364]
[1727266065903,6.6199,151.06,151.03,27.39363364]
[1727266066103,6.6206,151.05,151.01,39.25293364]
[1727266071823,6.6207,151.04,151.01,6.2704]
[1727266072712,6.6204,151.05,151.01,12.8924]
[1727266073224,23.776884,151.07,151.02,1.32417534]
[1727266073724,6.6199,151.06,151.02,7.94567534]
[1727266073924,6.6199,151.06,151.02,18.78710898]
[1727266075025,6.6199,151.06,151.02,17.46293364]
[1727266077109,6.6205,151.05,151.01,12.8924]
[1727266082423,6.62,151.06,151.02,18.78720719]
[1727266083930,23.776884,151.07,151.02,10.84143364]
[1727266084133,30.396384,151.07,151.03,6.6211]
[1727266084528,6.6204,151.05,151.02,16.5538]
[1727266085037,6.6204,151.05,151.02,17.87794166]
[1727266085634,6.6204,151.05,151.02,16.5538]
[1727266086210,6.6204,151.05,151.01,12.8921]
[1727266091530,6.62,151.06,151.02,18.78711134]
[1727266092011,6.62,151.06,151.02,17.46293364]
[1727266095018,6.62,151.06,151.02,6.6215]
[1727266098426,6.62,151.06,151.02,7.94563966]
[1727266099720,16.55,151.06,150.99,0.3498345]
[1727266099923,6.6217,151.02,150.99,0.3498345]
[1727266100731,23.776884,151.01,150.99,0.3498345]
[1727266103337,30.398984,151.01,150.99,0.3498345]
[1727266104649,23.776884,151.01,150.99,0.3498345]
[1727266104843,30.399384,151.0,150.99,0.3498345]
[1727266106846,50.399384,151.0,150.99,0.3498345]
[1727266111045,37.33046171,151.0,150.99,0.3498345]
[1727266111247,30.399384,151.0,150.99,0.3498345]
[1727266111734,6.6225,151.0,150.99,0.3498345]
[1727266117461,30.399384,151.0,150.99,0.3498345]
[1727266126462,50.399384,151.0,150.99,0.3498345]
[1727266132352,65.594884,151.0,150.99,3.45e-05]
[1727266134080,72.52784224,151.0,150.99,3.45e-05]
[1727266134459,50.400684,150.97,150.96,0.0727576]
[1727266136181,100.400684,150.97,150.96,0.0727576]
[1727266137263,100.400684,150.97,150.96,5.76e-05]
[1727266137660,50.401584,150.95,150.94,8.81e-05]
[1727266138179,66.453884,150.95,150.94,8.81e-05]
[1727266139384,66.453884,150.95,150.87,0.0727576]
[1727266139385,59.829184,150.95,150.87,0.0727576]
[1727266139686,50.403284,150.91,150.9,3.45e-05]
[1727266139903,100.403284,150.91,150.9,3.45e-05]
[1727266140060,116.115484,150.91,150.9,3.45e-05]
[1727266140259,100.404584,150.88,150.87,0.0727576]
[1727266141485,93.776884,150.88,150.85,0.2427305]
[1727266141695,50.405484,150.86,150.85,0.2427305]
[1727266141989,100.405484,150.86,150.85,0.2427305]
[1727266142962,50.405484,150.86,150.85,0.2427305]
[1727266144387,57.34490327,150.86,150.85,0.2427305]
[1727266145204,107.34490327,150.86,150.85,0.2427305]
[1727266146602,107.34490327,150.86,150.85,0.1173305]
[1727266147798,57.34490327,150.86,150.85,0.1173305]
[1727266148608,57.34490327,150.86,150.81,0.3498345]
[1727266148609,100.71630327,150.86,150.81,0.3498345]
[1727266148914,50.407284,150.82,150.81,0.3498345]
[1727266150500,50.407284,150.82,150.76,17.35072174]
[1727266150501,6.6314,150.8,150.77,0.0727576]
[1727266150801,6.6314,150.8,150.77,0.3514733]
[1727266151910,30.407684,150.81,150.77,6.9839733]
[1727266152119,6.6306,150.82,150.78,10.84143364]
[1727266153398,6.6306,150.82,150.78,17.47333364]
[1727266154314,20.0,150.84,150.78,17.47333364]
[1727266154492,30.406984,150.83,150.8,10.84143364]
[1727266156421,6.6307,150.82,150.79,15.7522]
[1727266157209,23.776884,150.84,150.79,15.7522]
[1727266157410,6.6309,150.81,150.79,15.7522]
[1727266158620,6.6305,150.82,150.79,15.7522]
[1727266161999,6.631,150.81,150.79,15.7522]
[1727266165415,6.6305,150.82,150.79,26.59363364]
[1727266165611,6.6305,150.82,150.79,26.87234934]
[1727266166934,6.6301,150.83,150.79,33.50394934]
[1727266167526,26.93897974,150.85,150.8,10.84143364]
[1727266167735,6.6295,150.84,150.81,16.96503364]
[1727266168909,6.6303,150.83,150.81,6.1236]
[1727266170913,16.5713,150.87,150.81,6.1236]
[1727266170914,43.776884,150.86,150.81,6.1236]
[1727266171240,6.6304,150.82,150.81,6.1236]
[1727266174721,23.776884,150.86,150.81,6.1236]
[1727266175223,6.6295,150.84,150.81,6.1236]
[1727266175837,6.6302,150.83,150.81,6.1236]
[1727266180840,6.6302,150.83,150.81,6.4023157]
[1727266184236,6.93698409,150.85,150.81,0.2787157]
[1727266184237,6.6304,150.82,150.81,0.2787157]
[1727266185818,30.407284,150.82,150.81,0.2787157]
[1727266191734,6.6304,150.82,150.81,0.2787157]
[1727266200670,30.407284,150.82,150.81,0.2787157]
[1727266211070,30.407284,150.82,150.81,0.3039397]
[1727266220364,50.407284,150.82,150.81,0.3039397]
[1727266224767,26.6304,150.82,150.81,0.3039397]
[1727266226182,50.407284,150.82,150.81,0.3039397]
[1727266243804,6.6304,150.82,150.81,0.3039397]
[1727266272729,13.56491158,150.83,150.81,12.47136704]
[1727266272903,6.93481158,150.83,150.81,12.47136704]
[1727266273103,6.93481158,150.83,150.82,10.84143364]
[1727266274216,16.5701,150.88,150.82,10.84143364]
[1727266274401,6.6291,150.85,150.83,1.32581994]
[1727266274820,6.6295,150.84,150.81,11.14537334]
[1727266275021,6.6295,150.84,150.81,0.3039397]
[1727266277201,61.65433011,150.9,150.81,0.3039397]
[1727266277202,6.6304,150.82,150.81,0.3039397]
[1727266303470,30.407284,150.82,150.81,0.3039397]
[1727266303774,50.407284,150.82,150.81,0.3039397]
[1727266311668,57.32193325,150.82,150.81,0.3039397]
[1727266321074,13.54504925,150.82,150.81,0.3039397]
[1727266321460,6.6304,150.82,150.81,0.3039397]
[1727266332768,30.407284,150.82,150.81,0.3039397]
[1727266353743,50.407284,150.82,150.81,0.3039397]
[1727266373447,26.6304,150.82,150.81,0.3039397]
[1727266376347,6.6304,150.82,150.81,0.3039397]
[1727266380581,30.407284,150.82,150.81,0.3039397]
[1727266384172,50.407284,150.82,150.81,0.3039397]
[1727266387750,57.33333813,150.82,150.81,0.3039397]
[1727266394471,50.407284,150.82,150.81,0.3039397]
[1727266398379,57.33365761,150.82,150.81,0.3039397]
[1727266399188,57.33365761,150.82,150.81,3.97e-05]
[1727266410294,6.92637361,150.82,150.81,3.97e-05]
[1727266410586,6.6289,150.86,150.81,29.0611397]
[1727266410770,6.6289,150.86,150.83,10.84143364]
[1727266411869,6.6291,150.85,150.83,10.84143364]
[1727266412677,6.6295,150.84,150.81,33.27177334]
[1727266413690,6.6295,150.84,150.81,22.4303397]
[1727266413887,23.776884,150.88,150.81,22.4303397]
[1727266413888,6.6301,150.83,150.81,22.4303397]
[1727266422503,43.776884,150.85,150.81,6.2523397]
[1727266422700,6.6304,150.82,150.81,6.2523397]
[1727266425199,6.6304,150.82,150.81,3.97e-05]
[1727266427299,30.407284,150.82,150.81,3.97e-05]
[1727266432394,6.6299,150.84,150.81,3.97e-05]
[1727266432587,6.6302,150.83,150.81,3.97e-05]
[1727266432790,20.0,150.84,150.81,3.97e-05]
[1727266432791,26.6296,150.84,150.81,3.97e-05]
[1727266432997,6.6296,150.84,150.81,3.97e-05]
[1727266434313,6.93047044,150.85,150.81,10.84147334]
[1727266434522,13.55957044,150.85,150.81,17.47217334]
[1727266435013,6.6291,150.85,150.81,17.47217334]
[1727266435216,6.6287,150.86,150.82,6.6303]
[1727266435392,6.6287,150.86,150.82,17.47173364]
[1727266435716,6.6287,150.86,150.83,6.1882]
[1727266437007,6.6292,150.85,150.83,6.1882]
[1727266437514,30.406384,150.84,150.81,3.97e-05]
[1727266437713,6.63,150.83,150.81,3.97e-05]
[1727266439900,30.406484,150.84,150.81,3.97e-05]
[1727266440799,6.6299,150.83,150.81,3.97e-05]
[1727266444523,30.406584,150.84,150.81,3.97e-05]
[1727266445096,23.49762242,150.89,150.82,10.84143364]
[1727266445301,15.4669,150.92,150.82,10.84143364]
[1727266445502,13.55636608,150.88,150.84,17.47073364]
[1727266445921,32.0327,150.92,150.84,12.16723693]
[1727266446113,6.6282,150.87,150.84,10.84143364]
[1727266447409,6.6282,150.87,150.83,6.6296]
[1727266447602,6.6287,150.86,150.82,49.28543364]
[1727266460727,16.5699,150.88,150.82,15.238]
[1727266461022,6.6292,150.85,150.82,15.238]
[1727266461335,6.6288,150.86,150.82,26.07943364]
[1727266462036,6.6288,150.86,150.82,32.70983364]
[1727266466935,6.6288,150.86,150.82,21.8684]
[1727266468035,6.6291,150.85,150.82,15.238]
[1727266468234,43.776884,150.88,150.79,6.1479]
[1727266468441,23.776884,150.85,150.79,6.1479]
[1727266469121,6.6305,150.82,150.79,6.1479]
[1727266469641,6.6309,150.81,150.79,6.1479]
[1727266470420,6.6305,150.82,150.79,6.1479]
[1727266473934,20.0,150.84,150.79,6.1479]
[1727266473935,6.6311,150.81,150.79,6.1479]
[1727266474160,6.6312,150.8,150.77,0.31502811]
[1727266477546,6.6312,150.8,150.77,11.15646175]
[1727266479443,6.6318,150.79,150.77,0.31502811]
[1727266480333,30.70746927,150.83,150.77,0.31502811]
[1727266480533,6.6314,150.8,150.77,0.31502811]
[1727266483145,6.6314,150.8,150.77,11.15646175]
[1727266485650,6.6314,150.8,150.77,12.48279408]
[1727266486950,6.6314,150.8,150.77,12.48279126]
[1727266487150,6.6314,150.8,150.77,11.15646175]
[1727266487347,6.6309,150.81,150.77,17.78896175]
[1727266492267,6.6309,150.81,150.77,6.94752811]
[1727266492435,6.6309,150.81,150.77,17.78896175]
[1727266498258,30.70746927,150.83,150.77,17.78896175]
[1727266498259,6.6313,150.8,150.77,17.78896175]
[1727266500658,30.70746927,150.83,150.79,10.84143364]
[1727266500844,6.6305,150.82,150.8,10.84143364]
[1727266501037,13.56068527,150.83,150.8,10.84143364]
[1727266501238,6.6305,150.82,150.8,10.84143364]
[1727266501433,6.6305,150.82,150.79,10.84143364]
[1727266502556,6.6312,150.8,150.77,11.15646175]
[1727266502772,6.6318,150.79,150.77,0.31502811]
[1727266503440,6.6321,150.78,150.77,0.31502811]
[1727266506768,6.6318,150.79,150.77,11.15646175]
[1727266507555,16.5751,150.83,150.77,11.15646175]
[1727266507556,43.776884,150.82,150.77,11.15646175]
[1727266507758,6.6316,150.8,150.77,11.15646175]
[1727266508467,43.776884,150.82,150.77,11.15646175]
[1727266508666,6.6317,150.79,150.77,11.15646175]
[1727266508842,6.6317,150.79,150.77,0.31502811]
[1727266509374,6.6317,150.79,150.77,11.15646175]
[1727266510683,6.6317,150.79,150.77,0.31502811]
[1727266522879,43.776884,150.82,150.77,0.31502811]
[1727266523186,6.6321,150.78,150.77,0.31502811]
[1727266525365,30.408984,150.78,150.77,0.31502811]
[1727266527177,6.6321,150.78,150.77,0.31502811]
[1727266527966,50.408984,150.78,150.77,0.31502811]
[1727266528178,30.411184,150.73,150.72,0.34936279]
[1727266528366,6.6343,150.73,150.72,0.34936279]
[1727266528579,16.5831,150.76,150.72,0.34936279]
[1727266528763,6.634,150.74,150.72,0.34936279]
[1727266530179,6.6338,150.75,150.72,0.34936279]
[1727266530373,43.776884,150.77,150.73,10.84143364]
[1727266530567,20.0,150.77,150.73,10.84143364]
[1727266530766,20.0,150.78,150.73,10.84143364]
[1727266530976,6.6331,150.76,150.73,10.84143364]
[1727266534163,20.0,150.78,150.73,10.84143364]
[1727266534367,6.6335,150.75,150.73,10.84143364]
[1727266535591,6.6335,150.75,150.72,11.19079643]
[1727266542488,26.93769728,150.78,150.74,10.84143364]
[1727266542793,6.6329,150.77,150.74,10.84143364]
[1727266542987,6.6329,150.77,150.75,10.84143364]
[1727266545392,6.93687853,150.79,150.76,18.80100472]
[1727266545603,6.93687853,150.79,150.77,10.84143364]
[1727266546100,6.6316,150.8,150.77,10.84143364]
[1727266546305,16.0372,150.84,150.78,10.84143364]
[1727266546306,6.93599114,150.81,150.78,10.84143364]
[1727266546494,13.56689114,150.81,150.78,10.84143364]
[1727266546798,6.6309,150.81,150.78,10.84143364]
[1727266546979,6.6305,150.82,150.79,10.84143364]
[1727266547302,6.6305,150.82,150.8,10.84143364]
[1727266549204,6.6301,150.83,150.81,10.84143364]
[1727266549496,6.93562463,150.84,150.82,10.84143364]
[1727266549685,6.93562463,150.84,150.83,10.84143364]
[1727266549686,6.6296,150.84,150.83,10.84143364]
[1727266549894,6.6296,150.84,150.82,10.84143364]
[1727266550475,39.88700288,150.88,150.82,10.84143364]
[1727266550704,6.6291,150.85,150.82,10.84143364]
[1727266555274,43.776884,150.87,150.83,16.5746]
[1727266555474,13.80350288,150.88,150.85,10.84143364]
[1727266555695,6.8703448,150.88,150.86,10.84143364]
[1727266555901,6.6282,150.87,150.84,10.84143364]
[1727266560506,6.6287,150.86,150.84,10.84143364]
[1727266561907,6.6287,150.86,150.82,17.47163364]
[1727266562278,6.6287,150.86,150.81,6.6307]
[1727266562482,6.6287,150.86,150.81,17.47213364]
[1727266562987,6.6287,150.86,150.8,32.8968]
[1727266563298,6.6287,150.86,150.83,10.84143364]
[1727266563704,6.6287,150.86,150.82,6.6303]
[1727266565118,6.6291,150.85,150.81,17.47213364]
[1727266568796,6.6296,150.84,150.81,10.84143364]
[1727266569109,6.63,150.83,150.8,16.5775]
[1727266569305,6.6297,150.84,150.8,23.2087]
[1727266573018,15.7356,150.87,150.76,15.4494]
[1727266573019,6.6304,150.82,150.78,6.6318]
[1727266573223,6.63,150.83,150.79,17.47303364]
[1727266573410,43.776884,150.86,150.81,10.84143364]
[1727266573804,6.6295,150.84,150.81,10.84143364]
[1727266574200,6.6295,150.84,150.8,6.6309]
[1727266574415,6.6305,150.82,150.79,10.84143364]
[1727266574611,6.6301,150.83,150.79,17.47283364]
[1727266576621,6.6301,150.83,150.79,6.6314]
[1727266576818,6.6301,150.83,150.79,17.47283364]
[1727266578034,6.6304,150.82,150.79,10.84143364]
[1727266579115,60.348784,150.86,150.79,10.84143364]
[1727266581228,67.28621164,150.86,150.79,10.84143364]
[1727266581424,6.6296,150.84,150.81,10.84143364]
[1727266584526,26.93742764,150.86,150.81,10.84143364]
[1727266584733,26.93742764,150.86,150.83,10.84143364]
[1727266584734,6.93742764,150.86,150.83,10.84143364]
[1727266584932,20.2422448,150.88,150.83,10.84143364]
[1727266585252,0.2422448,150.88,150.83,10.84143364]
[1727266586028,6.629,150.86,150.83,10.84143364]
[1727266586533,6.6294,150.85,150.81,17.47223364]
[1727266591138,6.6299,150.83,150.8,22.8895]
[1727266592349,6.6299,150.83,150.8,33.73093364]
[1727266594745,6.6296,150.84,150.8,40.36213364]
[1727266596245,39.518484,150.86,150.76,15.4494]
[1727266596454,6.6303,150.83,150.79,17.47313364]
[1727266597132,39.518484,150.86,150.77,16.5808]
[1727266597334,6.6304,150.82,150.79,10.84143364]
[1727266598421,6.63,150.83,150.79,17.47313364]
[1727266599743,6.6296,150.84,150.81,10.84143364]
[1727266600826,6.6292,150.85,150.81,17.47193364]
[1727266602228,6.6292,150.85,150.83,10.84143364]
[1727266602853,26.6288,150.86,150.83,10.84143364]
[1727266603959,6.6283,150.87,150.83,12.16725809]
[1727266604750,6.6283,150.87,150.83,10.84143364]
[1727266607333,6.6283,150.87,150.83,12.16722658]
[1727266607543,6.6283,150.87,150.83,10.84143364]
[1727266609532,6.6286,150.86,150.83,10.84143364]
[1727266611662,6.6286,150.86,150.84,10.84143364]
[1727266617062,6.6286,150.86,150.82,6.6303]
[1727266617366,0.2422448,150.88,150.84,10.84143364]
[1727266617667,6.8701448,150.88,150.85,10.84143364]
[1727266618772,0.2422448,150.88,150.85,10.84143364]
[1727266619066,6.6282,150.87,150.85,10.84143364]
[1727266619763,6.8702448,150.88,150.85,10.84143364]
[1727266620147,0.2422448,150.88,150.85,17.47043364]
[1727266620662,0.2422448,150.88,150.85,10.84143364]
[1727266620863,6.8700448,150.88,150.85,10.84143364]
[1727266621772,6.8700448,150.88,150.84,17.47073364]
[1727266622140,6.6282,150.87,150.84,17.47073364]
[1727266622564,6.6286,150.86,150.84,10.84143364]
[1727266623073,6.6283,150.87,150.84,10.84143364]
[1727266624650,6.8700448,150.88,150.84,17.47083364]
[1727266625065,0.2422448,150.88,150.86,10.84143364]
[1727266625267,0.2422448,150.88,150.87,10.84143364]
[1727266625863,0.2422448,150.88,150.87,17.46963364]
[1727266631479,0.2422448,150.88,150.87,18.79484464]
[1727266632182,0.2422448,150.88,150.87,17.46963364]
[1727266647601,0.2422448,150.93,150.87,34.61831764]
[1727266647902,0.2422448,150.93,150.92,17.46743364]
[1727266648100,0.2422448,150.93,150.92,18.79233376]
[1727266648308,0.2422448,150.93,150.91,16.5655]
[1727266656290,0.2422448,150.93,150.91,23.1919]
[1727266659212,0.2422448,150.93,150.88,16.5685]
[1727266659520,6.8678448,150.93,150.89,17.46863364]
[1727266661321,6.8678448,150.93,150.89,6.6272]
[1727266662012,6.6266,150.91,150.87,6.628]
[1727266662323,6.6266,150.91,150.87,17.46943364]